fUST/lending_fUST_20251002
["ID","MTS","AMOUNT","RATE_DAILY","PERIOD"]
[388766888,1759351876776,-500.0,0.00023561,2]
[388766889,1759351876785,-827.84,0.00023561,2]
[388766890,1759351876794,-500.0,0.00023561,2]
[388766891,1759351876803,-1132.39,0.00023561,2]
[388766892,1759351876812,-531.21227536,0.00023561,2]
[388766893,1759351876822,-1233.9,0.00023561,2]
[388766894,1759351876832,-509.52,0.00023561,2]
[388766895,1759351876841,-500.0,0.00023561,2]
[388766896,1759351876850,-500.0,0.00023561,2]
[388766897,1759351876859,-578.69,0.00023561,2]
[388766898,1759351876868,-500.0,0.00023561,2]
[388766899,1759351876877,-1304.76,0.00023561,2]
[388766900,1759351876886,-1265.35,0.00023561,2]
[388766901,1759351876895,-840.12,0.00023561,2]
[388766902,1759351876904,-500.0,0.00023561,2]
[388766903,1759351876913,-586.2,0.00023561,2]
[388766904,1759351876922,-572.52,0.00023561,2]
[388766905,1759351876931,-500.0,0.00023561,2]
[388766906,1759351876940,-1436.94,0.00023561,2]
[388766907,1759351876953,-1433.29407168,0.00023595,2]
[388766908,1759351876963,-1500.0,0.00023633,2]
[388766909,1759351876972,-760.0,0.00023736,2]
[388766910,1759351876982,-261.0,0.00023787,2]
[388766911,1759351876992,-502.68,0.00023835,2]
[388766912,1759351877001,-500.0,0.00023835,2]
[388766913,1759351877010,-626.05,0.00023835,2]
[388766914,1759351877019,-208.72,0.00023835,2]
[388766915,1759351877028,-567.54,0.00023835,2]
[388766916,1759351877037,-653.02,0.00023835,2]
[388766917,1759351877047,-724.68,0.00023835,2]
[388766918,1759351877056,-664.63,0.00023835,2]
[388766919,1759351877066,-521.19,0.00023835,2]
[388766920,1759351877076,-4334.58,0.00023835,2]
[388766921,1759351877085,-772.96,0.00023835,2]
[388766922,1759351877094,-581.9,0.00023835,2]
[388766923,1759351877104,-640.75,0.00023835,2]
[388766924,1759351877113,-618.88,0.00023835,2]
[388766925,1759351877123,-500.0,0.00023835,2]
[388766926,1759351877132,-827.84,0.00023835,2]
[388766927,1759351877140,-500.0,0.00023835,2]
[388766928,1759351877150,-1132.39,0.00023835,2]
[388766929,1759351877160,-1233.9,0.00023835,2]
[388766930,1759351877169,-509.52,0.00023835,2]
[388766931,1759351877179,-500.0,0.00023835,2]
[388766932,1759351877187,-500.0,0.00023835,2]
[388766933,1759351877197,-578.69,0.00023835,2]
[388766934,1759351877206,-500.0,0.00023835,2]
[388766935,1759351877215,-1304.76,0.00023835,2]
[388766936,1759351877224,-1265.35,0.00023835,2]
[388766937,1759351877233,-840.12,0.00023835,2]
[388766938,1759351877242,-500.0,0.00023835,2]
[388766939,1759351877251,-586.2,0.00023835,2]
[388766940,1759351877259,-572.52,0.00023835,2]
[388766941,1759351877269,-500.0,0.00023835,2]
[388766942,1759351877278,-1436.94,0.00023835,2]
[388766943,1759351877287,-261.0,0.00023956,2]
[388766944,1759351877297,-151.0,0.00024,6]
[388766945,1759351877307,-261.0,0.00024064,2]
[388766946,1759351877316,-1433.29407168,0.00024078,2]
[388766947,1759351877325,-502.68,0.00024109,2]
[388766948,1759351877334,-500.0,0.00024109,2]
[388766949,1759351877343,-626.05,0.00024109,2]
[388766950,1759351877352,-567.54,0.00024109,2]
[388766951,1759351877361,-653.02,0.00024109,2]
[388766952,1759351877370,-250.81,0.00024109,2]
[388766953,1759351877379,-724.68,0.00024109,2]
[388766954,1759351877388,-664.63,0.00024109,2]
[388766955,1759351877397,-521.19,0.00024109,2]
[388766956,1759351877407,-4334.58,0.00024109,2]
[388766957,1759351877416,-772.96,0.00024109,2]
[388766958,1759351877426,-282.067784,0.00024109,7]
[388766959,1759351877435,-581.9,0.00024109,2]
[388766960,1759351877445,-640.75,0.00024109,2]
[388766961,1759351877454,-618.88,0.00024109,2]
[388766962,1759351877464,-151.0,0.00024109,7]
[388766963,1759351877474,-151.0,0.00024109,7]
[388766964,1759351877483,-500.0,0.00024109,2]
[388766965,1759351877491,-827.84,0.00024109,2]
[388766966,1759351877501,-151.0,0.00024109,7]
[388766967,1759351877511,-151.0,0.00024109,7]
[388766968,1759351877520,-500.0,0.00024109,2]
[388766969,1759351877529,-1132.39,0.00024109,2]
[388766970,1759351877538,-151.0,0.00024109,7]
[388766971,1759351877547,-1233.9,0.00024109,2]
[388766972,1759351877557,-509.52,0.00024109,2]
[388766973,1759351877566,-191.16286721,0.00024109,2]
[388766974,1759351877576,-500.0,0.00024109,2]
[388766975,1759351877585,-578.69,0.00024109,2]
[388766976,1759351877594,-500.0,0.00024109,2]
[388766977,1759351877605,-1304.76,0.00024109,2]
[388766978,1759351877614,-1265.35,0.00024109,2]
[388766979,1759351877624,-840.12,0.00024109,2]
[388766980,1759351877634,-151.0,0.00024109,7]
[388766981,1759351877643,-151.0,0.00024109,7]
[388766982,1759351877652,-151.0,0.00024109,7]
[388766983,1759351877661,-500.0,0.00024109,2]
[388766984,1759351877670,-586.2,0.00024109,2]
[388766985,1759351877680,-151.0,0.00024109,7]
[388766986,1759351877689,-572.52,0.00024109,2]
[388766987,1759351877698,-500.0,0.00024109,2]
[388766988,1759351877708,-151.0,0.00024109,7]
[388766989,1759351877717,-151.0,0.00024109,7]
[388766990,1759351877726,-1436.94,0.00024109,2]
[388766991,1759351877736,-903.370101,0.00024109,7]
[388766992,1759351877745,-151.0,0.00024109,7]
[388766993,1759351877755,-903.370101,0.00024109,7]
[388766994,1759351877764,-903.370101,0.00024109,7]
[388766995,1759351877774,-159.0,0.00024137,12]
[388766996,1759351877784,-800.0,0.00024141,2]
[388766997,1759351877793,-1800.0,0.00024181,2]
[388766998,1759351877802,-233.9640895,0.000242,7]
[388766999,1759351877811,-1433.29407168,0.00024222,2]
[388767000,1759351877820,-860.0,0.00024284,2]
[388767001,1759351877830,-800.0,0.00024304,2]
[388767002,1759351877839,-823.0,0.00024344,2]
[388767003,1759351877848,-800.0,0.00024355,2]
[388767004,1759351877858,-300.0,0.00024375,2]
[388767005,1759351877867,-502.68,0.00024383,2]
[388767006,1759351877876,-500.0,0.00024383,2]
[388767007,1759351877886,-626.05,0.00024383,2]
[388767008,1759351877895,-567.54,0.00024383,2]
[388767009,1759351877904,-653.02,0.00024383,2]
[388767010,1759351877914,-724.68,0.00024383,2]
[388767011,1759351877923,-664.63,0.00024383,2]
[388767012,1759351877932,-521.19,0.00024383,2]
[388767013,1759351877942,-4334.58,0.00024383,2]
[388767014,1759351877955,-772.96,0.00024383,2]
[388767015,1759351877965,-581.9,0.00024383,2]
[388767016,1759351877974,-640.75,0.00024383,2]
[388767017,1759351877984,-618.88,0.00024383,2]
[388767018,1759351877995,-500.0,0.00024383,2]
[388767019,1759351878005,-827.84,0.00024383,2]
[388767020,1759351878014,-500.0,0.00024383,2]
[388767021,1759351878026,-1132.39,0.00024383,2]
[388767022,1759351878035,-1233.9,0.00024383,2]
[388767023,1759351878044,-509.52,0.00024383,2]
[388767024,1759351878054,-444.33623822,0.00024383,2]
[388767025,1759351878063,-578.69,0.00024383,2]
[388767026,1759351878073,-338.23,0.00024383,2]
[388767027,1759351878082,-151.0,0.00024383,7]
[388767028,1759351878092,-1304.76,0.00024383,2]
[388767029,1759351878100,-1265.35,0.00024383,2]
[388767030,1759351878110,-840.12,0.00024383,2]
[388767031,1759351878119,-489.46148069,0.00024383,2]
[388767032,1759351878128,-586.2,0.00024383,2]
[388767033,1759351878137,-572.52,0.00024383,2]
[388767034,1759351878147,-500.0,0.00024383,2]
[388767035,1759351878156,-1436.94,0.00024383,2]
[388767036,1759351878166,-152.70379828,0.00024384,2]
[388767037,1759351878175,-500.0,0.00024384,2]
[388767038,1759351878185,-2000.0,0.000244,2]
[388767039,1759351878195,-154.450076,0.00024413,2]
[388767040,1759351878204,-86302.26693114,0.000245,27]
[388767041,1759351878217,-177607.30535926,0.000245,27]
[388767042,1759351878234,-820.62939,0.000245,27]
[388767043,1759351878249,-670.89144385,0.000245,27]
[388767044,1759351878260,-17474.23185765,0.000245,27]
[388767045,1759351878270,-53701.52955589,0.000245,27]
[388767052,1759351955117,417.15472785,0.00025,30]
[388767055,1759352054307,23633.1478168,0.0001788,2]
[388767056,1759352132699,800.0,0.0002876,120]
[388767057,1759352240319,-5000.0,0.00018492,2]
[388767058,1759352240559,-500.0,0.000187,2]
[388767059,1759352240588,-1288.96498534,0.00018786,2]
[388767060,1759352240620,-1200.0,0.00018866,2]
[388767061,1759352240650,-300.0,0.00018866,2]
[388767062,1759352240679,-300.0,0.00018867,2]
[388767063,1759352240709,-300.0,0.00018867,2]
[388767064,1759352240738,-300.0,0.00018867,2]
[388767065,1759352240767,-300.0,0.00018867,2]
[388767066,1759352241064,-1097.97420358,0.00018868,2]
[388767067,1759352241088,-10000.01,0.00018868,2]
[388767068,1759352241116,-10000.01,0.00018868,2]
[388767069,1759352241156,-10000.01,0.00018868,2]
[388767070,1759352241286,-1200.0,0.00018866,2]
[388767071,1759352241325,-7600.01,0.00018868,2]
[388767072,1759352241412,-10000.01,0.00018868,2]
[388767073,1759352241576,-1301.97579642,0.00018868,2]
[388767074,1759352241606,-1009.84,0.00018868,3]
[388767075,1759352241636,-504.92,0.00018868,3]
[388767076,1759352241664,-252.46,0.00018868,3]
[388767077,1759352241693,-757.4,0.00018868,3]
[388767078,1759352241724,-208.15538129,0.00018877,2]
[388767079,1759352241756,-155.80186738,0.00018877,2]
[388767080,1759352247956,892.08187806,0.00018878,2]
[388767081,1759352263240,726.82203176,0.00018878,2]
[388767082,1759352263273,4273.17796824,0.00018878,2]
[388767083,1759352264025,-208.65514315,0.00018878,2]
[388767084,1759352266890,-154.17596329,0.00018878,2]
[388767085,1759352270644,-439.08508952,0.00018878,2]
[388767086,1759352272932,-166.063822,0.00018878,2]
[388767087,1759352275230,-436.63010988,0.00018878,2]
[388767088,1759352276805,-404.24577342,0.00018878,2]
[388767089,1759352279566,-276.36097538,0.00018878,2]
[388767090,1759352281573,-575.2707443,0.00018878,2]
[388767091,1759352282869,300.0,0.00018877,2]
[388767092,1759352284394,-288.60595056,0.00018878,2]
[388767093,1759352286083,5000.0,0.00018878,2]
[388767094,1759352286253,-177.3254538,0.00018878,2]
[388767095,1759352291602,-174.95342101,0.00018878,2]
[388767096,1759352297304,-177.8382571,0.00018878,2]
[388767097,1759352300442,-1311.25984549,0.00018878,2]
[388767100,1759352305030,-152.70300438,0.00018878,2]
[388767101,1759352307516,-417.37658991,0.00018878,2]
[388767102,1759352309534,426.83203176,0.00018878,2]
[388767103,1759352309557,2841.99050459,0.00018878,2]
[388767104,1759352310292,-286.23654563,0.00018878,2]
[388767105,1759352312936,-170.6148935,0.00018878,2]
[388767106,1759352314342,-385.64536508,0.00018878,2]
[388767107,1759352316880,-166.84135727,0.00018878,2]
[388767108,1759352320298,-276.13221432,0.00018878,2]
[388767109,1759352322342,-300.0,0.00018878,2]
[388767110,1759352325379,-246.02726314,0.00018878,2]
[388767111,1759352329111,-276.9921209,0.00018878,2]
[388767112,1759352332047,-200.0,0.00018878,2]
[388767113,1759352335160,-379.13865768,0.00018878,2]
[388767114,1759352336767,-249.88971549,0.00018878,2]
[388767115,1759352339288,-298.51234555,0.00018878,2]
[388767116,1759352342215,300.0,0.00018877,2]
[388767117,1759352342824,-525.07427452,0.00018878,2]
[388767118,1759352344706,-221.63937728,0.00018878,2]
[388767119,1759352347881,-256.16061647,0.00018878,2]
[388767120,1759352350088,-476.89595442,0.00018878,2]
[388767121,1759352352354,-227.46344808,0.00018878,2]
[388767122,1759352354944,-529.95798103,0.00018878,2]
[388767123,1759352356591,-222.09345223,0.00018878,2]
[388767124,1759352358230,-225.22986734,0.00018878,2]
[388767125,1759352360850,-300.0,0.00018878,2]
[388767127,1759352362457,-390.19583285,0.00018878,2]
[388767132,1759352366174,170.6148935,0.000188,2]
[388767133,1759352368116,-302.85233423,0.00018878,2]
[388767134,1759352370613,-360.37186939,0.00018878,2]
[388767135,1759352375238,-333.02370465,0.00018878,2]
[388767136,1759352378003,-500.0,0.00018878,2]
[388767137,1759352382848,-407.18855488,0.00018878,2]
[388767138,1759352384444,-200.0,0.00018878,2]
[388767139,1759352386586,-500.0,0.00018878,2]
[388767140,1759352388071,-151.13666302,0.00018878,2]
[388767141,1759352390934,-372.15874734,0.00018878,2]
[388767142,1759352395905,-310.94846158,0.00018878,2]
[388767143,1759352397457,-152.0,0.00018878,2]
[388767144,1759352401866,236.0,0.00018877,2]
[388767145,1759352401943,300.0,0.00018877,2]
[388767146,1759352402383,300.0,0.00018877,2]
[388767147,1759352403232,151.0,0.000181,2]
[388767148,1759352403529,151.0,0.000171,2]
[388767149,1759352406587,1200.0,0.00018877,2]
[388767150,1759352410308,-289.27485921,0.00018878,2]
[388767151,1759352412187,2910.78695447,0.00018878,2]
[388767152,1759352412814,-302.75300495,0.00018878,2]
[388767153,1759352414900,-498.55838868,0.00018878,2]
[388767154,1759352416565,-180.25513429,0.00018878,2]
[388767155,1759352418559,-187.42973043,0.00018878,2]
[388767156,1759352419432,697.27,0.00018868,3]
[388767157,1759352420030,741.34764744,0.00018878,2]
[388767158,1759352420055,4258.65235256,0.00018878,2]
[388767159,1759352420681,-329.3851065,0.00018878,2]
[388767160,1759352422772,-333.95455455,0.00018878,2]
[388767161,1759352425777,-164.52220721,0.00018878,2]
[388767162,1759352427365,-185.14218044,0.00018878,2]
[388767163,1759352429171,-222.28871557,0.00018878,2]
[388767164,1759352430197,348.64,0.00018868,3]
[388767165,1759352432668,-459.65614521,0.00018878,2]
[388767166,1759352435313,-171.16813973,0.00018878,2]
[388767167,1759352437911,-255.01229992,0.00018878,2]
[388767168,1759352440914,-315.68738622,0.00018878,2]
[388767169,1759352440954,174.32,0.00018868,3]
[388767170,1759352442509,-303.33571407,0.00018878,2]
[388767171,1759352444563,-199.53354559,0.00018878,2]
[388767172,1759352446067,-500.0,0.00018878,2]
[388767173,1759352449011,-194.41893908,0.00018878,2]
[388767175,1759352449861,1000.0,0.00018132,2]
[388767176,1759352451739,522.96,0.00018868,3]
[388767177,1759352453101,-193.5237827,0.00018878,2]
[388767178,1759352458097,-352.86848498,0.00018878,2]
[388767179,1759352461768,-173.828921,0.00018878,2]
[388767180,1759352462311,300.0,0.00018877,2]
[388767181,1759352464570,-183.255087,0.00018878,2]
[388767182,1759352466968,-213.40616008,0.00018878,2]
[388767183,1759352470392,-778.71641287,0.00018878,2]
[388767184,1759352471298,367.69352873,0.00018877,2]
[388767185,1759352471352,500.0,0.00018877,2]
[388767186,1759352471399,306.42553555,0.00018877,2]
[388767187,1759352471429,283.27994537,0.00018877,2]
[388767188,1759352471953,-248.45187072,0.00018878,2]
[388767189,1759352472501,504.92,0.00018868,3]
[388767190,1759352474462,-241.63803325,0.00018878,2]
[388767191,1759352476206,-181.93168238,0.00018878,2]
[388767192,1759352478407,-206.61339169,0.00018878,2]
[388767193,1759352479962,-281.99033271,0.00018878,2]
[388767194,1759352482494,-349.36920343,0.00018878,2]
[388767195,1759352483220,252.46,0.00018868,3]
[388767196,1759352484724,-408.03395468,0.00018878,2]
[388767197,1759352487661,-334.45209696,0.00018878,2]
[388767198,1759352491749,-616.45594787,0.00018878,2]
[388767199,1759352493920,757.39,0.00018868,3]
[388767201,1759352495656,-285.58106092,0.00018878,2]
[388767202,1759352499632,-494.14806088,0.00018878,2]
[388767203,1759352501173,-227.46344808,0.00018878,2]
[388767204,1759352503220,-260.09997174,0.00018878,2]
[388767205,1759352505597,-293.87486244,0.00018878,2]
[388767206,1759352509764,-500.0,0.00018878,2]
[388767207,1759352511891,-518.81396918,0.00018878,2]
[388767208,1759352515580,-203.65425316,0.00018878,2]
[388767209,1759352517235,-154.43112863,0.00018878,2]
[388767210,1759352522488,300.0,0.00018877,2]
[388767211,1759352529314,-495.89565102,0.00018878,2]
[388767212,1759352534006,123.26863779,0.00018778,2]
[388767213,1759352534030,1028.05733983,0.00018778,2]
[388767215,1759352540503,1200.0,0.00018877,2]
[388767216,1759352553418,531.068167,0.00018039,2]
[388767217,1759352554505,-5621.98058335,0.00018878,2]
[388767218,1759352554543,-10000.01,0.00018878,2]
[388767219,1759352554663,-10000.01,0.00018878,2]
[388767220,1759352554768,-10000.01,0.00018878,2]
[388767221,1759352554901,-10000.01,0.00018878,2]
[388767222,1759352555082,-10000.01,0.00018878,2]
[388767223,1759352555204,-10000.01,0.00018878,2]
[388767225,1759352557782,-10000.01,0.00018878,2]
[388767226,1759352557901,-10000.01,0.00018878,2]
[388767227,1759352558062,-10000.01,0.00018878,2]
[388767228,1759352559806,-10000.01,0.00018878,2]
[388767229,1759352559927,-10000.01,0.00018878,2]
[388767230,1759352560049,-10000.01,0.00018878,2]
[388767231,1759352560174,-10000.01,0.00018878,2]
[388767232,1759352560292,-10000.01,0.00018878,2]
[388767233,1759352560433,-2830.02528767,0.00018878,2]
[388767234,1759352560461,-500.0,0.00018878,2]
[388767235,1759352560489,-500.0,0.00018878,2]
[388767236,1759352560518,-500.0,0.00018878,2]
[388767237,1759352560546,-500.0,0.00018878,2]
[388767238,1759352560652,-500.0,0.00018878,2]
[388767239,1759352560681,-500.0,0.00018878,2]
[388767240,1759352560715,-500.0,0.00018878,2]
[388767241,1759352560743,-500.0,0.00018878,2]
[388767242,1759352560772,-500.0,0.00018878,2]
[388767243,1759352560799,-500.0,0.00018878,2]
[388767244,1759352560827,-500.0,0.00018878,2]
[388767245,1759352560853,-500.0,0.00018878,2]
[388767246,1759352560999,-339.95942466,0.00018878,2]
[388767247,1759352561013,-2000.01,0.00018878,2]
[388767249,1759352561952,-10000.01,0.00018878,2]
[388767250,1759352565867,-10000.01,0.00018184,2]
[388767251,1759352565981,-10000.01,0.00018184,2]
[388767252,1759352566213,-10000.01,0.00018184,2]
[388767253,1759352566340,-10000.01,0.00018184,2]
[388767254,1759352566487,-10000.01,0.00018184,2]
[388767255,1759352566644,-1817.3895409,0.00018184,2]
[388767256,1759352566688,-6365.2309182,0.00018878,2]
[388767257,1759352568022,-10000.01,0.00018878,2]
[388767258,1759352568052,-10000.01,0.00018878,2]
[388767259,1759352573247,5000.0,0.00018878,2]
[388767260,1759352581069,5000.0,0.00018878,2]
[388767261,1759352582284,0.01,0.00018877,2]
[388767262,1759352582440,299.99,0.00018877,2]
[388767263,1759352596257,5000.0,0.00018878,2]
[388767264,1759352604132,4300.59693244,0.00018878,2]
[388767270,1759352662750,399.42306756,0.00018778,2]
[388767271,1759352662778,10000.01,0.00018778,2]
[388767272,1759352662804,10000.01,0.00018778,2]
[388767273,1759352662829,10000.01,0.00018778,2]
[388767274,1759352662854,10000.01,0.00018778,2]
[388767275,1759352662881,10000.01,0.00018778,2]
[388767276,1759352662905,10000.01,0.00018778,2]
[388767277,1759352662930,10000.01,0.00018778,2]
[388767278,1759352662954,10000.01,0.00018778,2]
[388767279,1759352662979,10000.01,0.00018778,2]
[388767280,1759352663497,-224.97544208,0.00018778,2]
[388767281,1759352702007,1200.0,0.00018777,2]
[388767282,1759352702105,300.0,0.00018777,2]
[388767309,1759352761808,-281.96898877,0.00018778,2]
[388767310,1759352762405,300.0,0.00018777,2]
[388767311,1759352764613,-227.03775526,0.00018778,2]
[388767312,1759352768267,-408.13593994,0.00018778,2]
[388767313,1759352770305,-224.88304557,0.00018778,2]
[388767314,1759352772814,-699.35993462,0.00018778,2]
[388767315,1759352776270,-243.55137263,0.00018778,2]
[388767317,1759352779885,-212.30842414,0.00018778,2]
[388767318,1759352782503,-250.0,0.00018778,2]
[388767319,1759352784690,-315.62546277,0.00018778,2]
[388767320,1759352786833,-257.72616109,0.00018778,2]
[388767321,1759352788329,-200.07144948,0.00018778,2]
[388767322,1759352789792,-274.60612634,0.00018778,2]
[388767323,1759352792509,-210.46725918,0.00018778,2]
[388767324,1759352796863,-230.32027283,0.00018778,2]
[388767325,1759352798968,-490.76308097,0.00018778,2]
[388767326,1759352801614,-152.0,0.00018778,2]
[388767327,1759352804474,-265.92257133,0.00018778,2]
[388767328,1759352808418,-242.47735657,0.00018778,2]
[388767329,1759352810852,-425.81135297,0.00018778,2]
[388767330,1759352813611,-731.50015451,0.00018778,2]
[388767331,1759352815192,-6931.66533308,0.00018778,2]
[388767332,1759352823878,-590.509024,0.00018778,2]
[388767333,1759352826075,-500.0,0.00018778,2]
[388767334,1759352827819,-193.92918174,0.00018778,2]
[388767335,1759352829985,-620.77535671,0.00018778,2]
[388767336,1759352831137,-487.881,0.00018778,2]
[388767337,1759352832241,-392.12091957,0.00018778,2]
[388767338,1759352840593,1200.0,0.00018777,2]
[388767339,1759352841223,392.12091957,0.00018777,2]
[388767348,1759352879914,239.898137,0.0001802,2]
[388767349,1759352880207,317.61,0.00015984,2]
[388767350,1759352880503,317.61,0.00015984,2]
[388767352,1759352880794,317.6,0.00015984,2]
[388767356,1759352882206,300.0,0.00018777,2]
[388767361,1759352942233,300.0,0.00018777,2]
[388767362,1759352988159,545.97,0.00018768,3]
[388767363,1759352998310,4269.20094343,0.00018778,2]
[388767364,1759352998333,730.79905657,0.00018778,2]
[388767365,1759353002373,300.0,0.00018777,2]
[388767366,1759353006678,1200.0,0.00018777,2]
[388767367,1759353008543,1415.06958011,0.00018778,2]
[388767368,1759353009418,184.38979695,0.00018773,2]
[388767369,1759353016717,5000.0,0.00018778,2]
[388767370,1759353024473,1169.75156637,0.00018778,2]
[388767371,1759353024499,3830.24843363,0.00018778,2]
[388767494,1759353037812,-971.22823244,0.00018778,2]
[388767495,1759353037824,-262342.86573385,0.00018778,2]
[388767496,1759353037833,-1007.4102304,0.00018873,2]
[388767497,1759353037842,-13444.04957925,0.0001889,2]
[388767499,1759353037851,-500.0,0.00018973,2]
[388767500,1759353037860,-500.0,0.00018973,2]
[388767501,1759353037870,-500.0,0.00018973,2]
[388767502,1759353037879,-593.85091944,0.00018973,2]
[388767504,1759353037888,-500.0,0.00018973,2]
[388767505,1759353037898,-500.0,0.00018973,2]
[388767506,1759353037908,-500.0,0.00018973,2]
[388767507,1759353037917,-500.0,0.00018973,2]
[388767508,1759353037927,-500.0,0.00018973,2]
[388767509,1759353037936,-500.0,0.00018973,2]
[388767510,1759353037946,-500.0,0.00018973,2]
[388767511,1759353037955,-454.15640381,0.00018973,2]
[388767512,1759353037965,-500.0,0.00018973,2]
[388767513,1759353037974,-501.07349506,0.00018973,2]
[388767515,1759353037984,-500.0,0.00018973,2]
[388767516,1759353037993,-500.0,0.00018973,2]
[388767518,1759353038003,-500.0,0.00018973,2]
[388767520,1759353038012,-500.0,0.00018973,2]
[388767521,1759353038022,-500.0,0.00018973,2]
[388767522,1759353038032,-500.0,0.00018973,2]
[388767523,1759353038042,-276.69361139,0.00018973,2]
[388767524,1759353038051,-501.15189891,0.00018973,2]
[388767525,1759353038060,-500.0,0.00018973,2]
[388767526,1759353038070,-500.0,0.00018973,2]
[388767527,1759353038079,-500.0,0.00018973,2]
[388767528,1759353038088,-500.0,0.00018973,2]
[388767529,1759353038097,-500.0,0.00018973,2]
[388767530,1759353038106,-500.0,0.00018973,2]
[388767531,1759353038115,-500.0,0.00018973,2]
[388767532,1759353038125,-500.0,0.00018973,2]
[388767533,1759353038134,-500.0,0.00018973,2]
[388767534,1759353038143,-50000.0,0.00018973,2]
[388767535,1759353038152,-100000.0,0.0001899,2]
[388767536,1759353038162,-45752.57666766,0.00019,3]
[388767537,1759353038171,-293.36416222,0.00019,3]
[388767538,1759353038182,-4672.83628518,0.00019,2]
[388767539,1759353038191,-500.0,0.00019,3]
[388767540,1759353038200,-151.0,0.000191,2]
[388767541,1759353038210,-349.0,0.00019132,2]
[388767542,1759353038220,-500.0,0.00019173,2]
[388767543,1759353038230,-500.0,0.00019173,2]
[388767544,1759353038239,-500.0,0.00019173,2]
[388767545,1759353038249,-500.0,0.00019173,2]
[388767546,1759353038259,-500.0,0.00019173,2]
[388767547,1759353038269,-158.31676954,0.00019173,2]
[388767548,1759353038279,-617.66842259,0.00019173,2]
[388767549,1759353038289,-500.0,0.00019173,2]
[388767550,1759353038299,-500.0,0.00019173,2]
[388767551,1759353038308,-500.0,0.00019178,2]
[388767552,1759353038318,-440.0,0.00019178,2]
[388767553,1759353038327,-500.0,0.00019178,2]
[388767554,1759353038337,-500.0,0.00019178,2]
[388767555,1759353038346,-500.0,0.00019178,2]
[388767556,1759353038355,-500.0,0.00019178,2]
[388767557,1759353038366,-460.0,0.00019178,2]
[388767558,1759353038375,-500.0,0.00019178,2]
[388767559,1759353038385,-500.0,0.00019178,2]
[388767560,1759353038395,-500.0,0.00019178,2]
[388767561,1759353038405,-480.0,0.00019178,2]
[388767562,1759353038419,-583.41487089,0.00019178,2]
[388767563,1759353038429,-500.0,0.00019178,2]
[388767564,1759353038439,-500.0,0.00019178,2]
[388767565,1759353038448,-500.0,0.00019178,2]
[388767566,1759353038458,-500.0,0.00019178,2]
[388767567,1759353038468,-500.0,0.00019178,2]
[388767568,1759353038478,-500.0,0.00019178,2]
[388767569,1759353038487,-500.0,0.00019178,2]
[388767570,1759353038502,-500.0,0.00019178,2]
[388767571,1759353038512,-500.0,0.00019178,2]
[388767572,1759353038522,-500.0,0.00019178,2]
[388767573,1759353038531,-500.0,0.00019178,2]
[388767574,1759353038540,-500.0,0.00019178,2]
[388767575,1759353038550,-500.0,0.00019178,2]
[388767576,1759353038560,-500.0,0.00019178,2]
[388767577,1759353038570,-500.0,0.00019178,2]
[388767578,1759353038580,-500.0,0.00019178,2]
[388767579,1759353038590,-420.0,0.00019178,2]
[388767580,1759353038600,-500.0,0.00019178,2]
[388767581,1759353038610,-480.0,0.00019178,2]
[388767582,1759353038620,-500.0,0.00019178,2]